[Event "Titled Tuesday Blitz February 14 Late 2023"]
[White "Stachanczyk, Jacek"]
[Black "Martic, Ivan"]
[WhiteFideId "1116657"]
[BlackFideId "929301"]
[WhiteElo "2147"]
[BlackElo "2301"]
[Result "1/2-1/2"]
[Round "07"]
[TimeControl "180+2"]
[Date "2023.02.14"]
[WhiteClock "0:00:31"]
[BlackClock "0:00:31"]

1. e4 {[%clk 0:02:59]}  d6 {[%clk 0:02:58]} 2. d4 {[%clk 0:02:59]}  Nf6 {[%clk 0:02:58]} 3. Nc3 {[%clk 0:02:59]}  e5 {[%clk 0:02:58]} 4. Nge2 {[%clk 0:02:58]}  exd4 {[%clk 0:02:52]} 5. Nxd4 {[%clk 0:02:57]}  Be7 {[%clk 0:02:52]} 6. Bf4 {[%clk 0:02:57]}  O-O {[%clk 0:02:52]} 7. Qd2 {[%clk 0:02:57]}  Nc6 {[%clk 0:02:51]} 8. Nxc6 {[%clk 0:02:52]}  bxc6 {[%clk 0:02:52]} 9. O-O-O {[%clk 0:02:48]}  Be6 {[%clk 0:02:42]} 10. f3 {[%clk 0:02:47]}  Rb8 {[%clk 0:02:41]} 11. g4 {[%clk 0:02:45]}  Nd7 {[%clk 0:02:34]} 12. g5 {[%clk 0:02:43]}  Ne5 {[%clk 0:02:32]} 13. Be2 {[%clk 0:02:27]}  Qc8 {[%clk 0:02:06]} 14. h4 {[%clk 0:02:22]}  Qb7 {[%clk 0:02:04]} 15. b3 {[%clk 0:02:20]}  Qb4 {[%clk 0:02:04]} 16. Kb2 {[%clk 0:02:14]}  Nc4+ {[%clk 0:01:51]} 17. Bxc4 {[%clk 0:02:12]}  Bxc4 {[%clk 0:01:52]} 18. h5 {[%clk 0:01:52]}  Rb7 {[%clk 0:01:51]} 19. h6 {[%clk 0:01:45]}  g6 {[%clk 0:01:50]} 20. Qd4 {[%clk 0:01:43]}  f6 {[%clk 0:01:48]} 21. Bd2 {[%clk 0:01:32]}  Be6 {[%clk 0:01:45]} 22. Qxb4 {[%clk 0:01:30]}  Rxb4 {[%clk 0:01:46]} 23. Nd5 {[%clk 0:01:26]}  cxd5 {[%clk 0:01:46]} 24. Bxb4 {[%clk 0:01:25]}  dxe4 {[%clk 0:01:46]} 25. fxe4 {[%clk 0:01:20]}  fxg5 {[%clk 0:01:46]} 26. Rhf1 {[%clk 0:01:18]}  Rf4 {[%clk 0:01:44]} 27. Rxf4 {[%clk 0:01:14]}  gxf4 {[%clk 0:01:45]} 28. Bd2 {[%clk 0:01:14]}  g5 {[%clk 0:01:43]} 29. Rg1 {[%clk 0:01:10]}  Kf7 {[%clk 0:01:43]} 30. Kc3 {[%clk 0:01:10]}  Bf6+ {[%clk 0:01:43]} 31. Kb4 {[%clk 0:01:10]}  Kg6 {[%clk 0:01:32]} 32. Bxf4 {[%clk 0:01:08]}  Kxh6 {[%clk 0:01:32]} 33. Be3 {[%clk 0:01:07]}  a6 {[%clk 0:01:30]} 34. Ka5 {[%clk 0:01:07]}  Kg6 {[%clk 0:01:30]} 35. Kxa6 {[%clk 0:01:06]}  h5 {[%clk 0:01:31]} 36. Kb7 {[%clk 0:01:05]}  h4 {[%clk 0:01:31]} 37. a4 {[%clk 0:01:05]}  h3 {[%clk 0:01:30]} 38. a5 {[%clk 0:01:05]}  d5 {[%clk 0:01:28]} 39. a6 {[%clk 0:01:01]}  dxe4 {[%clk 0:01:25]} 40. Kc6 {[%clk 0:00:57]}  g4 {[%clk 0:01:11]} 41. a7 {[%clk 0:00:56]}  h2 {[%clk 0:01:11]} 42. Rh1 {[%clk 0:00:55]}  g3 {[%clk 0:01:12]} 43. a8=Q {[%clk 0:00:50]}  Kf5 {[%clk 0:01:10]} 44. Qa5+ {[%clk 0:00:45]}  Kg4 {[%clk 0:01:10]} 45. Qe1 {[%clk 0:00:44]}  Kh3 {[%clk 0:01:05]} 46. Bf4 {[%clk 0:00:42]}  Bh4 {[%clk 0:01:03]} 47. Bxg3 {[%clk 0:00:40]}  Bxg3 {[%clk 0:01:04]} 48. Qxe4 {[%clk 0:00:39]}  Bg4 {[%clk 0:01:04]} 49. Rxh2+ {[%clk 0:00:38]}  Bxh2 {[%clk 0:01:03]} 50. c4 {[%clk 0:00:37]}  Bd6 {[%clk 0:00:52]} 51. Qd3+ {[%clk 0:00:36]}  Bg3 {[%clk 0:00:52]} 52. c5 {[%clk 0:00:36]}  Kg2 {[%clk 0:00:51]} 53. Qd2+ {[%clk 0:00:34]}  Kh3 {[%clk 0:00:50]} 54. Qc3 {[%clk 0:00:32]}  Kg2 {[%clk 0:00:49]} 55. Kb5 {[%clk 0:00:31]}  Be2+ {[%clk 0:00:47]} 56. Ka5 {[%clk 0:00:31]}  Bf2 {[%clk 0:00:45]} 57. b4 {[%clk 0:00:31]}  Kf1 {[%clk 0:00:44]} 58. Qc1+ {[%clk 0:00:31]}  Be1 {[%clk 0:00:44]} 59. Ka4 {[%clk 0:00:29]}  c6 {[%clk 0:00:44]} 60. Qf4+ {[%clk 0:00:29]}  Bf2 {[%clk 0:00:43]} 61. Qd6 {[%clk 0:00:28]}  Bb5+ {[%clk 0:00:42]} 62. Ka5 {[%clk 0:00:27]}  Ke2 {[%clk 0:00:43]} 63. Qf4 {[%clk 0:00:27]}  Be3 {[%clk 0:00:42]} 64. Qb8 {[%clk 0:00:27]}  Kd3 {[%clk 0:00:41]} 65. Qxb5+ {[%clk 0:00:27]}  cxb5 {[%clk 0:00:41]} 66. Kxb5 {[%clk 0:00:28]}  Kc3 {[%clk 0:00:39]} 67. c6 {[%clk 0:00:29]}  Bf4 {[%clk 0:00:37]} 68. Kc5 {[%clk 0:00:30]}  Kb3 {[%clk 0:00:34]} 69. b5 {[%clk 0:00:30]}  Ka4 {[%clk 0:00:33]} 70. b6 {[%clk 0:00:30]}  Be3+ {[%clk 0:00:31]} 71. Kd6 {[%clk 0:00:30]}  Bxb6 {[%clk 0:00:31]} 72. c7 {[%clk 0:00:31]}  Bxc7+ {[%clk 0:00:31]} 1/2-1/2


[Site "https://www.chess.com"]

[Event "Titled Tuesday Blitz February 14 Late 2023"]
[White "Forgacs, Attila Jr."]
[Black "Vaglio Munoz, Jaime"]
[WhiteFideId "773654"]
[BlackFideId "6500145"]
[WhiteElo "2264"]
[BlackElo "2174"]
[Result "1/2-1/2"]
[Round "07"]
[TimeControl "180+2"]
[Date "2023.02.14"]
[WhiteClock "0:00:01"]
[BlackClock "0:00:12"]

1. e4 {[%clk 0:03:00]}  e6 {[%clk 0:02:51]} 2. d4 {[%clk 0:03:00]}  d5 {[%clk 0:02:51]} 3. Nc3 {[%clk 0:03:01]}  dxe4 {[%clk 0:02:51]} 4. Nxe4 {[%clk 0:03:02]}  Nf6 {[%clk 0:02:52]} 5. Nxf6+ {[%clk 0:02:57]}  Qxf6 {[%clk 0:02:52]} 6. Nf3 {[%clk 0:02:58]}  h6 {[%clk 0:02:53]} 7. Bd3 {[%clk 0:02:56]}  Nc6 {[%clk 0:02:52]} 8. c3 {[%clk 0:02:56]}  Bd6 {[%clk 0:02:52]} 9. Qe2 {[%clk 0:02:52]}  Bd7 {[%clk 0:02:44]} 10. Be3 {[%clk 0:02:52]}  e5 {[%clk 0:02:40]} 11. dxe5 {[%clk 0:02:50]}  Nxe5 {[%clk 0:02:38]} 12. Nxe5 {[%clk 0:02:50]}  Qxe5 {[%clk 0:02:37]} 13. O-O-O {[%clk 0:02:43]}  Be6 {[%clk 0:02:25]} 14. Bc4 {[%clk 0:02:19]}  Bxc4 {[%clk 0:02:24]} 15. Qxc4 {[%clk 0:02:20]}  O-O {[%clk 0:02:23]} 16. Qg4 {[%clk 0:02:04]}  h5 {[%clk 0:02:17]} 17. Qh4 {[%clk 0:01:58]}  Be7 {[%clk 0:02:15]} 18. Qh3 {[%clk 0:01:50]}  Rad8 {[%clk 0:02:08]} 19. Bd4 {[%clk 0:01:47]}  Qg5+ {[%clk 0:02:07]} 20. Kb1 {[%clk 0:01:45]}  c5 {[%clk 0:02:06]} 21. Be3 {[%clk 0:01:41]}  Qg6+ {[%clk 0:02:04]} 22. Ka1 {[%clk 0:01:40]}  Qc2 {[%clk 0:02:03]} 23. Rc1 {[%clk 0:01:34]}  Qg6 {[%clk 0:01:59]} 24. Rhd1 {[%clk 0:01:30]}  Qg4 {[%clk 0:01:56]} 25. Qxg4 {[%clk 0:01:29]}  hxg4 {[%clk 0:01:57]} 26. Kb1 {[%clk 0:01:16]}  f5 {[%clk 0:01:56]} 27. Bf4 {[%clk 0:01:07]}  Kf7 {[%clk 0:01:49]} 28. Bc7 {[%clk 0:00:59]}  Rxd1 {[%clk 0:01:35]} 29. Rxd1 {[%clk 0:01:00]}  Rc8 {[%clk 0:01:33]} 30. Be5 {[%clk 0:00:43]}  g5 {[%clk 0:01:31]} 31. Kc2 {[%clk 0:00:37]}  Ke6 {[%clk 0:01:27]} 32. Re1 {[%clk 0:00:37]}  Kd7 {[%clk 0:01:24]} 33. c4 {[%clk 0:00:32]}  f4 {[%clk 0:01:21]} 34. Rd1+ {[%clk 0:00:22]}  Ke6 {[%clk 0:01:20]} 35. Rd5 {[%clk 0:00:23]}  b6 {[%clk 0:01:18]} 36. Kd3 {[%clk 0:00:22]}  Rf8 {[%clk 0:01:17]} 37. Ke4 {[%clk 0:00:21]}  g3 {[%clk 0:01:12]} 38. fxg3 {[%clk 0:00:18]}  fxg3 {[%clk 0:01:09]} 39. Bxg3 {[%clk 0:00:17]}  Rf1 {[%clk 0:01:09]} 40. Re5+ {[%clk 0:00:15]}  Kf6 {[%clk 0:01:06]} 41. Kd5 {[%clk 0:00:14]}  Rd1+ {[%clk 0:01:05]} 42. Kc6 {[%clk 0:00:13]}  Rd2 {[%clk 0:01:02]} 43. Kb7 {[%clk 0:00:06]}  Rd7+ {[%clk 0:00:55]} 44. Ka6 {[%clk 0:00:05]}  Rd2 {[%clk 0:00:40]} 45. Kxa7 {[%clk 0:00:04]}  Rxb2 {[%clk 0:00:40]} 46. Rd5 {[%clk 0:00:03]}  Ke6 {[%clk 0:00:38]} 47. a4 {[%clk 0:00:02]}  Rb4 {[%clk 0:00:36]} 48. Re5+ {[%clk 0:00:03]}  Kd7 {[%clk 0:00:36]} 49. Re4 {[%clk 0:00:03]}  Bd8 {[%clk 0:00:33]} 50. Re5 {[%clk 0:00:02]}  Rxa4+ {[%clk 0:00:32]} 51. Kb7 {[%clk 0:00:02]}  Rxc4 {[%clk 0:00:32]} 52. Rd5+ {[%clk 0:00:02]}  Ke8 {[%clk 0:00:32]} 53. Re5+ {[%clk 0:00:01]}  Kf7 {[%clk 0:00:31]} 54. Rd5 {[%clk 0:00:02]}  Ke7 {[%clk 0:00:29]} 55. Kc6 {[%clk 0:00:02]}  Rc2 {[%clk 0:00:28]} 56. Rd7+ {[%clk 0:00:02]}  Ke8 {[%clk 0:00:28]} 57. Bd6 {[%clk 0:00:02]}  c4 {[%clk 0:00:26]} 58. Rh7 {[%clk 0:00:03]}  Rd2 {[%clk 0:00:25]} 59. Rh8+ {[%clk 0:00:03]}  Kf7 {[%clk 0:00:25]} 60. Rxd8 {[%clk 0:00:03]}  c3 {[%clk 0:00:25]} 61. Kd7 {[%clk 0:00:03]}  c2 {[%clk 0:00:25]} 62. Rc8 {[%clk 0:00:04]}  b5 {[%clk 0:00:24]} 63. Rf8+ {[%clk 0:00:01]}  Kg6 {[%clk 0:00:20]} 64. Rc8 {[%clk 0:00:02]}  b4 {[%clk 0:00:20]} 65. Ke6 {[%clk 0:00:02]}  b3 {[%clk 0:00:17]} 66. Ba3 {[%clk 0:00:02]}  Re2+ {[%clk 0:00:14]} 67. Kd5 {[%clk 0:00:02]}  Re1 {[%clk 0:00:14]} 68. Kd4 {[%clk 0:00:01]}  Ra1 {[%clk 0:00:14]} 69. Bb2 {[%clk 0:00:01]}  Rb1 {[%clk 0:00:14]} 70. Ba3 {[%clk 0:00:01]}  Ra1 {[%clk 0:00:12]} 71. Bb2 {[%clk 0:00:01]}  Ra2 {[%clk 0:00:12]} 72. Bc1 {[%clk 0:00:01]}  Ra1 {[%clk 0:00:12]} 73. Bb2 {[%clk 0:00:01]} 1/2-1/2


[Site "https://www.chess.com"]

[Event "Titled Tuesday Blitz February 14 Late 2023"]
[White "FuenfgegenWilly"]
[Black "Poeta, Caio Medeiros"]
[BlackFideId "2142660"]
[WhiteElo "2322"]
[BlackElo "2088"]
[Result "1-0"]
[Round "07"]
[TimeControl "180+2"]
[Date "2023.02.14"]
[WhiteClock "0:00:12"]
[BlackClock "0:00:23"]

1. e4 {[%clk 0:03:00]}  c6 {[%clk 0:02:59]} 2. Nc3 {[%clk 0:03:00]}  d5 {[%clk 0:03:00]} 3. Qe2 {[%clk 0:03:00]}  dxe4 {[%clk 0:02:52]} 4. Nxe4 {[%clk 0:03:01]}  Bf5 {[%clk 0:02:50]} 5. g4 {[%clk 0:03:01]}  Bxe4 {[%clk 0:02:48]} 6. Qxe4 {[%clk 0:03:02]}  Nf6 {[%clk 0:02:49]} 7. Qe2 {[%clk 0:03:02]}  e6 {[%clk 0:02:48]} 8. g5 {[%clk 0:03:02]}  Nd5 {[%clk 0:02:46]} 9. h4 {[%clk 0:03:02]}  Nd7 {[%clk 0:02:45]} 10. d4 {[%clk 0:03:02]}  Qc7 {[%clk 0:02:42]} 11. Nf3 {[%clk 0:02:52]}  O-O-O {[%clk 0:02:42]} 12. a3 {[%clk 0:02:48]}  Kb8 {[%clk 0:02:34]} 13. c4 {[%clk 0:02:43]}  N5b6 {[%clk 0:02:34]} 14. Be3 {[%clk 0:02:41]}  c5 {[%clk 0:02:32]} 15. O-O-O {[%clk 0:02:38]}  cxd4 {[%clk 0:02:32]} 16. Bxd4 {[%clk 0:02:39]}  Rc8 {[%clk 0:02:21]} 17. Kb1 {[%clk 0:02:33]}  Ka8 {[%clk 0:02:11]} 18. Ne5 {[%clk 0:01:42]}  Nxe5 {[%clk 0:01:49]} 19. Bxe5 {[%clk 0:01:43]}  Qc6 {[%clk 0:01:43]} 20. Rh3 {[%clk 0:01:42]}  Be7 {[%clk 0:01:39]} 21. Bxg7 {[%clk 0:01:42]}  Rhg8 {[%clk 0:01:39]} 22. Be5 {[%clk 0:01:36]}  Nxc4 {[%clk 0:01:35]} 23. Rc3 {[%clk 0:01:23]}  b5 {[%clk 0:01:35]} 24. f4 {[%clk 0:00:38]}  Qa6 {[%clk 0:01:16]} 25. Bg2+ {[%clk 0:00:36]}  Rc6 {[%clk 0:01:16]} 26. Rd7 {[%clk 0:00:30]}  Re8 {[%clk 0:01:07]} 27. Rxc4 {[%clk 0:00:10]}  bxc4 {[%clk 0:01:00]} 28. Qe4 {[%clk 0:00:10]}  Rc8 {[%clk 0:00:54]} 29. Rxe7 {[%clk 0:00:11]}  Qb5 {[%clk 0:00:51]} 30. Qc2 {[%clk 0:00:11]}  a5 {[%clk 0:00:50]} 31. Rxf7 {[%clk 0:00:10]}  c3 {[%clk 0:00:43]} 32. Bxc3 {[%clk 0:00:07]}  Kb8 {[%clk 0:00:36]} 33. Bxc6 {[%clk 0:00:08]}  Rxc6 {[%clk 0:00:35]} 34. Be5+ {[%clk 0:00:08]}  Kc8 {[%clk 0:00:27]} 35. Rf8+ {[%clk 0:00:08]}  Kd7 {[%clk 0:00:20]} 36. Qd1+ {[%clk 0:00:08]}  Qd5 {[%clk 0:00:20]} 37. Qxd5+ {[%clk 0:00:09]}  exd5 {[%clk 0:00:21]} 38. Rf7+ {[%clk 0:00:09]}  Ke6 {[%clk 0:00:21]} 39. Rxh7 {[%clk 0:00:10]}  Kf5 {[%clk 0:00:22]} 40. Rf7+ {[%clk 0:00:11]}  Kg4 {[%clk 0:00:21]} 41. Rf6 {[%clk 0:00:11]}  Rc4 {[%clk 0:00:20]} 42. g6 {[%clk 0:00:11]}  d4 {[%clk 0:00:21]} 43. g7 {[%clk 0:00:11]}  Rc8 {[%clk 0:00:21]} 44. Rf8 {[%clk 0:00:11]}  d3 {[%clk 0:00:21]} 45. Rxc8 {[%clk 0:00:11]}  d2 {[%clk 0:00:22]} 46. Rd8 {[%clk 0:00:12]}  Kf3 {[%clk 0:00:23]} 47. Rxd2 {[%clk 0:00:12]} 1-0


[Site "https://www.chess.com"]

[Event "Titled Tuesday Blitz February 14 Late 2023"]
[White "Abdi, Farzad"]
[Black "Mayaud, Raphael"]
[WhiteFideId "2076829"]
[BlackFideId "627151"]
[WhiteElo "2068"]
[BlackElo "2201"]
[Result "0-1"]
[Round "07"]
[TimeControl "180+2"]
[Date "2023.02.14"]
[WhiteClock "0:00:20"]
[BlackClock "0:00:24"]

1. e4 {[%clk 0:03:00]}  d5 {[%clk 0:02:58]} 2. exd5 {[%clk 0:03:00]}  Qxd5 {[%clk 0:02:59]} 3. Nc3 {[%clk 0:03:01]}  Qa5 {[%clk 0:02:59]} 4. d4 {[%clk 0:03:02]}  c6 {[%clk 0:02:59]} 5. Bc4 {[%clk 0:03:02]}  Nf6 {[%clk 0:02:59]} 6. Nf3 {[%clk 0:03:02]}  Bf5 {[%clk 0:03:00]} 7. Qe2 {[%clk 0:03:01]}  e6 {[%clk 0:03:00]} 8. Bd2 {[%clk 0:02:59]}  Bb4 {[%clk 0:03:00]} 9. O-O-O {[%clk 0:02:52]}  Nbd7 {[%clk 0:02:59]} 10. a3 {[%clk 0:02:52]}  Bxc3 {[%clk 0:02:59]} 11. Bxc3 {[%clk 0:02:53]}  Qc7 {[%clk 0:03:00]} 12. Ne5 {[%clk 0:02:51]}  Nxe5 {[%clk 0:02:59]} 13. dxe5 {[%clk 0:02:48]}  Nd5 {[%clk 0:02:59]} 14. Bxd5 {[%clk 0:02:42]}  cxd5 {[%clk 0:02:46]} 15. Bb4 {[%clk 0:02:42]}  Rc8 {[%clk 0:02:43]} 16. Rd2 {[%clk 0:02:34]}  Qc4 {[%clk 0:02:43]} 17. Qe3 {[%clk 0:02:16]}  Qa2 {[%clk 0:02:27]} 18. Kd1 {[%clk 0:01:43]}  Qa1+ {[%clk 0:00:28]} 19. Ke2 {[%clk 0:01:42]}  Qxb2 {[%clk 0:00:28]} 20. Qg5 {[%clk 0:01:42]}  Qxe5+ {[%clk 0:00:28]} 21. Qe3 {[%clk 0:01:16]}  Qxe3+ {[%clk 0:00:26]} 22. fxe3 {[%clk 0:01:13]}  f6 {[%clk 0:00:21]} 23. a4 {[%clk 0:01:04]}  Kf7 {[%clk 0:00:21]} 24. c3 {[%clk 0:01:01]}  a5 {[%clk 0:00:17]} 25. Bxa5 {[%clk 0:01:01]}  Ra8 {[%clk 0:00:17]} 26. Bb4 {[%clk 0:01:00]}  Rxa4 {[%clk 0:00:17]} 27. h3 {[%clk 0:00:59]}  h5 {[%clk 0:00:16]} 28. Rg1 {[%clk 0:00:59]}  h4 {[%clk 0:00:16]} 29. Rf1 {[%clk 0:00:54]}  Rha8 {[%clk 0:00:16]} 30. Kf2 {[%clk 0:00:49]}  Ra2 {[%clk 0:00:15]} 31. Rd1 {[%clk 0:00:49]}  Be4 {[%clk 0:00:15]} 32. Bc5 {[%clk 0:00:45]}  g5 {[%clk 0:00:14]} 33. Bb4 {[%clk 0:00:44]}  b5 {[%clk 0:00:13]} 34. Bc5 {[%clk 0:00:44]}  e5 {[%clk 0:00:13]} 35. Bb4 {[%clk 0:00:45]}  Ke6 {[%clk 0:00:13]} 36. Bc5 {[%clk 0:00:44]}  R8a4 {[%clk 0:00:13]} 37. Bb4 {[%clk 0:00:44]}  f5 {[%clk 0:00:14]} 38. Bc5 {[%clk 0:00:41]}  g4 {[%clk 0:00:14]} 39. hxg4 {[%clk 0:00:39]}  fxg4 {[%clk 0:00:14]} 40. Bb4 {[%clk 0:00:40]}  h3 {[%clk 0:00:14]} 41. gxh3 {[%clk 0:00:37]}  gxh3 {[%clk 0:00:14]} 42. Kg3 {[%clk 0:00:36]}  Bg2 {[%clk 0:00:15]} 43. Bc5 {[%clk 0:00:33]}  Ra8 {[%clk 0:00:14]} 44. Bb4 {[%clk 0:00:30]}  Rg8+ {[%clk 0:00:14]} 45. Kh2 {[%clk 0:00:30]}  Raa8 {[%clk 0:00:14]} 46. Rf2 {[%clk 0:00:24]}  Be4 {[%clk 0:00:13]} 47. Rg1 {[%clk 0:00:23]}  Rg2+ {[%clk 0:00:11]} 48. Rgxg2 {[%clk 0:00:18]}  hxg2 {[%clk 0:00:12]} 49. Rxg2 {[%clk 0:00:15]}  Rh8+ {[%clk 0:00:12]} 50. Kg1 {[%clk 0:00:15]}  Bxg2 {[%clk 0:00:12]} 51. Kxg2 {[%clk 0:00:16]}  Kf5 {[%clk 0:00:12]} 52. Kf3 {[%clk 0:00:16]}  e4+ {[%clk 0:00:11]} 53. Kf2 {[%clk 0:00:16]}  Ke6 {[%clk 0:00:12]} 54. Kg3 {[%clk 0:00:16]}  Rc8 {[%clk 0:00:12]} 55. Kf4 {[%clk 0:00:16]}  Rc4 {[%clk 0:00:12]} 56. Kg3 {[%clk 0:00:15]}  Rc8 {[%clk 0:00:13]} 57. Kf2 {[%clk 0:00:15]}  Ra8 {[%clk 0:00:14]} 58. Ke2 {[%clk 0:00:16]}  Ra6 {[%clk 0:00:15]} 59. Kd2 {[%clk 0:00:16]}  Ra4 {[%clk 0:00:16]} 60. Kc2 {[%clk 0:00:16]}  Ra2+ {[%clk 0:00:17]} 61. Kb3 {[%clk 0:00:17]}  Ra7 {[%clk 0:00:17]} 62. Bc5 {[%clk 0:00:17]}  Rf7 {[%clk 0:00:18]} 63. Bd4 {[%clk 0:00:17]}  Rh7 {[%clk 0:00:19]} 64. Kb4 {[%clk 0:00:18]}  Rh5 {[%clk 0:00:20]} 65. Kxb5 {[%clk 0:00:18]}  Rh3 {[%clk 0:00:20]} 66. Kc5 {[%clk 0:00:19]}  Rh1 {[%clk 0:00:19]} 67. Kb5 {[%clk 0:00:19]}  Rb1+ {[%clk 0:00:18]} 68. Kc5 {[%clk 0:00:19]}  Rb8 {[%clk 0:00:18]} 69. Kc6 {[%clk 0:00:20]}  Rc8+ {[%clk 0:00:19]} 70. Kb7 {[%clk 0:00:19]}  Rc4 {[%clk 0:00:19]} 71. Kb6 {[%clk 0:00:19]}  Kf5 {[%clk 0:00:19]} 72. Kb5 {[%clk 0:00:20]}  Kg4 {[%clk 0:00:19]} 73. Kb6 {[%clk 0:00:20]}  Kf3 {[%clk 0:00:20]} 74. Kb5 {[%clk 0:00:21]}  Ke2 {[%clk 0:00:21]} 75. Kb6 {[%clk 0:00:21]}  Kd1 {[%clk 0:00:22]} 76. Kb5 {[%clk 0:00:21]}  Kc1 {[%clk 0:00:23]} 77. Kb6 {[%clk 0:00:21]}  Kb1 {[%clk 0:00:24]} 78. Kb5 {[%clk 0:00:21]}  Kc2 {[%clk 0:00:24]} 79. Kb6 {[%clk 0:00:22]}  Rxc3 {[%clk 0:00:24]} 80. Kb5 {[%clk 0:00:21]}  Rc4 {[%clk 0:00:24]} 81. Kb6 {[%clk 0:00:21]}  Kd3 {[%clk 0:00:24]} 82. Kb5 {[%clk 0:00:20]}  Rxd4 {[%clk 0:00:24]} 0-1


[Site "https://www.chess.com"]

[Event "Titled Tuesday Blitz February 14 Late 2023"]
[White "Levine, David"]
[Black "Delorme, Axel"]
[WhiteFideId "2011611"]
[BlackFideId "632023"]
[WhiteElo "2040"]
[BlackElo "2483"]
[Result "0-1"]
[Round "07"]
[TimeControl "180+2"]
[Date "2023.02.14"]
[WhiteClock "0:00:02"]
[BlackClock "0:01:05"]

1. d4 {[%clk 0:02:59]}  d5 {[%clk 0:02:56]} 2. c4 {[%clk 0:02:59]}  e6 {[%clk 0:02:56]} 3. g3 {[%clk 0:02:59]}  c5 {[%clk 0:02:54]} 4. cxd5 {[%clk 0:02:58]}  exd5 {[%clk 0:02:54]} 5. Nf3 {[%clk 0:02:57]}  Nc6 {[%clk 0:02:54]} 6. Bg2 {[%clk 0:02:57]}  Nf6 {[%clk 0:02:55]} 7. O-O {[%clk 0:02:57]}  cxd4 {[%clk 0:02:54]} 8. Nxd4 {[%clk 0:02:56]}  Bc5 {[%clk 0:02:55]} 9. Nb3 {[%clk 0:02:53]}  Bb6 {[%clk 0:02:54]} 10. Nc3 {[%clk 0:02:51]}  d4 {[%clk 0:02:54]} 11. Nb5 {[%clk 0:02:46]}  O-O {[%clk 0:02:53]} 12. Bf4 {[%clk 0:02:26]}  Nd5 {[%clk 0:02:35]} 13. Bd6 {[%clk 0:02:21]}  Nde7 {[%clk 0:02:31]} 14. Bc5 {[%clk 0:02:19]}  Bxc5 {[%clk 0:02:24]} 15. Nxc5 {[%clk 0:02:19]}  a6 {[%clk 0:02:25]} 16. Na3 {[%clk 0:02:12]}  Qb6 {[%clk 0:02:22]} 17. Rc1 {[%clk 0:01:53]}  Rd8 {[%clk 0:02:19]} 18. Nd3 {[%clk 0:01:48]}  Be6 {[%clk 0:02:14]} 19. Nc4 {[%clk 0:01:45]}  Qb5 {[%clk 0:02:01]} 20. b3 {[%clk 0:01:44]}  Rac8 {[%clk 0:01:59]} 21. Qd2 {[%clk 0:01:42]}  Nd5 {[%clk 0:01:56]} 22. h4 {[%clk 0:01:17]}  Nc3 {[%clk 0:01:54]} 23. h5 {[%clk 0:01:14]}  Bxc4 {[%clk 0:01:49]} 24. bxc4 {[%clk 0:01:13]}  Qxc4 {[%clk 0:01:50]} 25. h6 {[%clk 0:01:13]}  g6 {[%clk 0:01:46]} 26. Rc2 {[%clk 0:01:01]}  Qe6 {[%clk 0:01:38]} 27. Nc5 {[%clk 0:00:54]}  Qe7 {[%clk 0:01:34]} 28. Rxc3 {[%clk 0:00:39]}  dxc3 {[%clk 0:01:31]} 29. Qxc3 {[%clk 0:00:39]}  Qe5 {[%clk 0:01:32]} 30. Qa3 {[%clk 0:00:28]}  Nd4 {[%clk 0:01:28]} 31. Ne4 {[%clk 0:00:23]}  Nxe2+ {[%clk 0:01:27]} 32. Kh2 {[%clk 0:00:22]}  Qh5+ {[%clk 0:01:14]} 33. Bh3 {[%clk 0:00:22]}  Qxh6 {[%clk 0:01:15]} 34. Nf6+ {[%clk 0:00:18]}  Kh8 {[%clk 0:01:12]} 35. Re1 {[%clk 0:00:12]}  Nd4 {[%clk 0:01:09]} 36. Qe7 {[%clk 0:00:02]}  Nf3+ {[%clk 0:01:06]} 37. Kg2 {[%clk 0:00:02]}  Nxe1+ {[%clk 0:01:05]} 0-1


[Site "https://www.chess.com"]

[Event "Titled Tuesday Blitz February 14 Late 2023"]
[White "Djordjevic, Dejan N"]
[Black "Gutkin, Ilya"]
[WhiteFideId "913316"]
[BlackFideId "16203470"]
[WhiteElo "2167"]
[BlackElo "2273"]
[Result "0-1"]
[Round "07"]
[TimeControl "180+2"]
[Date "2023.02.14"]
[WhiteClock "0:00:03"]
[BlackClock "0:00:03"]

1. e4 {[%clk 0:03:00]}  e5 {[%clk 0:02:59]} 2. Nf3 {[%clk 0:03:00]}  Nc6 {[%clk 0:03:00]} 3. Bc4 {[%clk 0:02:59]}  Nf6 {[%clk 0:03:00]} 4. d3 {[%clk 0:02:59]}  Bc5 {[%clk 0:02:59]} 5. O-O {[%clk 0:02:58]}  d6 {[%clk 0:02:58]} 6. Re1 {[%clk 0:02:58]}  Bg4 {[%clk 0:02:57]} 7. c3 {[%clk 0:02:59]}  Bb6 {[%clk 0:02:53]} 8. Nbd2 {[%clk 0:02:56]}  h6 {[%clk 0:02:50]} 9. Nf1 {[%clk 0:02:55]}  g5 {[%clk 0:02:43]} 10. Be3 {[%clk 0:02:48]}  Ne7 {[%clk 0:02:41]} 11. a4 {[%clk 0:02:46]}  c6 {[%clk 0:02:36]} 12. a5 {[%clk 0:02:40]}  Bc7 {[%clk 0:02:36]} 13. Qb3 {[%clk 0:02:39]}  O-O {[%clk 0:02:22]} 14. N3d2 {[%clk 0:02:28]}  Qd7 {[%clk 0:02:16]} 15. f3 {[%clk 0:02:28]}  Bh5 {[%clk 0:02:09]} 16. Ng3 {[%clk 0:02:23]}  Bg6 {[%clk 0:02:09]} 17. d4 {[%clk 0:02:20]}  d5 {[%clk 0:02:07]} 18. Bd3 {[%clk 0:02:12]}  dxe4 {[%clk 0:02:04]} 19. Ndxe4 {[%clk 0:02:08]}  Nxe4 {[%clk 0:01:57]} 20. Nxe4 {[%clk 0:02:07]}  Kg7 {[%clk 0:01:53]} 21. Nc5 {[%clk 0:02:06]}  Qd5 {[%clk 0:01:39]} 22. Qxd5 {[%clk 0:02:02]}  Nxd5 {[%clk 0:01:40]} 23. Bxg6 {[%clk 0:02:01]}  Kxg6 {[%clk 0:01:40]} 24. Nxb7 {[%clk 0:01:53]}  exd4 {[%clk 0:01:39]} 25. Bxd4 {[%clk 0:01:52]}  Rfb8 {[%clk 0:01:37]} 26. a6 {[%clk 0:01:52]}  Bb6 {[%clk 0:01:24]} 27. Bxb6 {[%clk 0:01:39]}  axb6 {[%clk 0:01:25]} 28. Nd6 {[%clk 0:01:37]}  Ra7 {[%clk 0:01:21]} 29. Nc4 {[%clk 0:01:14]}  Kf6 {[%clk 0:00:57]} 30. Ne5 {[%clk 0:01:06]}  Rc8 {[%clk 0:00:42]} 31. Rad1 {[%clk 0:00:38]}  b5 {[%clk 0:00:35]} 32. Nxc6 {[%clk 0:00:35]}  Rxc6 {[%clk 0:00:27]} 33. Rxd5 {[%clk 0:00:35]}  Raxa6 {[%clk 0:00:21]} 34. Rxb5 {[%clk 0:00:35]}  Rd6 {[%clk 0:00:20]} 35. Re2 {[%clk 0:00:34]}  Ra1+ {[%clk 0:00:18]} 36. Kf2 {[%clk 0:00:34]}  Rd3 {[%clk 0:00:17]} 37. Rb6+ {[%clk 0:00:24]}  Kg7 {[%clk 0:00:16]} 38. h4 {[%clk 0:00:19]}  gxh4 {[%clk 0:00:15]} 39. c4 {[%clk 0:00:15]}  Rc1 {[%clk 0:00:12]} 40. b3 {[%clk 0:00:13]}  Rdc3 {[%clk 0:00:12]} 41. Re3 {[%clk 0:00:09]}  R1c2+ {[%clk 0:00:10]} 42. Re2 {[%clk 0:00:09]}  Rc1 {[%clk 0:00:11]} 43. Rb2 {[%clk 0:00:08]}  Rh1 {[%clk 0:00:07]} 44. Rd6 {[%clk 0:00:06]}  h3 {[%clk 0:00:07]} 45. Kg3 {[%clk 0:00:03]}  h2 {[%clk 0:00:03]} 0-1


[Site "https://www.chess.com"]